[Event "Czech Open Rapid G1 2024"]
[Site "Pardubice"]
[Date "2024.07.18"]
[Round "8.17"]
[White "Jares, Michal"]
[Black "Eropunov, Gleb"]
[Result "1-0"]
[Annotator "RC"]
[ECO "B41"]
[WhiteElo "2382"]
[BlackElo "2190"]
[PlyCount "99"]
[EventDate "2024.07.16"]
[EventType "swiss"]
[EventCountry "CZE"]
[SourceTitle "playchess.com"]
[Source "ChessBase"]
[SourceQuality "1"]
[TimeControl "1200+10"]

1. e4 {[%emt 0:00:02]} c5 {[%emt 0:00:04]} 2. Nf3 {[%emt 0:00:03]} e6 {[%emt 0:00:02]} 3. d4 {[%emt 0:00:07]} cxd4 {[%emt 0:00:02]} 4. Nxd4 {[%emt 0:00:02]} a6 {[%emt 0:00:02]} 5. c4 {[%emt 0:00:05]} Nf6 {[%emt 0:00:03]} 6. Bd3 {[%emt 0:00:03]} Nc6 {[%emt 0:00:19]} 7. Be3 {[%emt 0:00:52]} Bb4+ {[%emt 0:00:28]} 8. Nd2 {[%emt 0:00:25]} Ne5 {[%emt 0:03:25]} 9. Be2 {[%emt 0:05:58]} Nxe4 {[%emt 0:00:32]} 10. O-O {[%emt 0:00:03]} Nxd2 {[%emt 0:01:03]} 11. Bxd2 {[%emt 0:00:02]} Bxd2 {[%emt 0:03:17]} 12. Qxd2 {[%emt 0:00:02]} d5 {[%emt 0:00:11]} 13. cxd5 {[%emt 0:01:31]} Qxd5 {[%emt 0:00:06]} 14. Rfd1 {[%emt 0:02:00]} O-O {[%emt 0:01:32]} 15. Qf4 {[%emt 0:01:33]} Ng6 {[%emt 0:00:19]} 16. Qc7 {[%emt 0:00:22]} Qg5 {[%emt 0:03:08]} 17. Nf3 {[%emt 0:00:48]} Qf6 {[%emt 0:00:24]} 18. b3 {[%emt 0:01:41]} e5 {[%emt 0:00:27]} 19. Rd6 {[%emt 0:00:33]} Be6 {[%emt 0:00:27]} 20. Rad1 {[%emt 0:00:37]} Nf4 {[%emt 0:01:29]} 21. Bf1 {[%emt 0:00:06]} e4 {[%emt 0:03:51]} 22. Nd4 {[%emt 0:01:53]} Qg5 {[%emt 0:00:04]} 23. g3 {[%emt 0:00:46]} Nh3+ {[%emt 0:00:31]} 24. Kg2 {[%emt 0:00:25]} Bg4 {[%emt 0:00:44]} 25. Be2 {[%emt 0:01:32]} Bxe2 {[%emt 0:00:49]} 26. Nxe2 {[%emt 0:00:01]} Qg4 {[%emt 0:00:04]} 27. Rd8 {[%emt 0:01:22]} h5 {[%emt 0:00:48]} 28. Ng1 {[%emt 0:01:14]} Nf4+ {[%emt 0:00:22]} 29. Kf1 {[%emt 0:00:15]} Nd3 {[%emt 0:00:08]} 30. Rxf8+ {[%emt 0:00:02]} Rxf8 {[%emt 0:00:01]} 31. Qc2 {[%emt 0:00:17]} Qf5 {[%emt 0:00:15]} 32. Kg2 {[%emt 0:00:18]} h4 {[%emt 0:00:08]} 33. Qe2 {[%emt 0:00:10]} Rc8 {[%emt 0:00:15]} 34. Rd2 {[%emt 0:00:20]} Rc1 {[%emt 0:00:05]} 35. Qe3 {[%emt 0:00:19]} Ne1+ {[%emt 0:00:08]} 36. Kh1 {[%emt 0:00:02]} Nf3 {[%emt 0:00:02]} 37. Rd8+ {[%emt 0:00:01]} Kh7 {[%emt 0:00:03]} 38. Qxc1 {[%emt 0:00:07]} hxg3 {[%emt 0:00:10]} 39. fxg3 {[%emt 0:00:15]} Qh5 {[%emt 0:00:24]} 40. Nxf3 {[%emt 0:00:14]} Qxf3+ {[%emt 0:00:01]} 41. Kg1 {[%emt 0:00:01]} e3 {[%emt 0:00:05]} 42. Qc2+ {[%emt 0:00:09]} g6 {[%emt 0:00:05]} 43. Qb2 {[%emt 0:00:25]} f6 {[%emt 0:00:13]} 44. Qg2 {[%emt 0:00:12]} Qf5 {[%emt 0:00:26]} 45. Qxb7+ {[%emt 0:00:05]} Kh6 {[%emt 0:00:00]} 46. Rh8+ {[%emt 0:00:18]} Kg5 {[%emt 0:00:02]} 47. h4+ {[%emt 0:00:06]} Kg4 {[%emt 0:00:02]} 48. Qg2 {[%emt 0:00:08]} Qc5 {[%emt 0:00:41]} 49. Kh2 {[%emt 0:00:11]} f5 {[%emt 0:00:09]} 50. Qe2# {[%emt 0:00:03]} 1-0

[Event "Czech Open Rapid G1 2024"]
[Site "Pardubice"]
[Date "2024.07.18"]
[Round "8.18"]
[White "Seger, Ruediger"]
[Black "Dehmel, Jens"]
[Result "1/2-1/2"]
[Annotator "ChessBase"]
[ECO "C54"]
[WhiteElo "2264"]
[BlackElo "1980"]
[PlyCount "55"]
[EventDate "2024.07.16"]
[EventType "swiss"]
[EventCountry "CZE"]
[SourceTitle "playchess.com"]
[Source "ChessBase"]
[SourceQuality "1"]
[TimeControl "1200+10"]

1. e4 {[%emt 0:00:00]} e5 {[%emt 0:00:01]} 2. Nf3 {[%emt 0:00:02]} Nc6 {[%emt 0:00:00]} 3. Bc4 {[%emt 0:00:01]} Bc5 {[%emt 0:00:02]} 4. c3 {[%emt 0:00:02]} Nf6 {[%emt 0:00:01]} 5. d3 {[%emt 0:00:02]} d6 {[%emt 0:00:05]} 6. O-O {[%emt 0:00:05]} O-O {[%emt 0:00:05]} 7. a4 {[%emt 0:00:04]} a6 {[%emt 0:00:19]} 8. h3 {[%emt 0:00:28]} Re8 {[%emt 0:00:06]} 9. Re1 {[%emt 0:00:09]} Ba7 {[%emt 0:00:39]} 10. Nbd2 {[%emt 0:00:20]} Be6 {[%emt 0:00:03]} 11. b4 {[%emt 0:03:35]} h6 {[%emt 0:00:19]} 12. Bxe6 {[%emt 0:00:36]} Rxe6 {[%emt 0:00:03]} 13. Qc2 {[%emt 0:00:09]} Re8 {[%emt 0:00:38]} 14. Nf1 {[%emt 0:01:30]} Qd7 {[%emt 0:02:03]} 15. Be3 {[%emt 0:00:07]} Bxe3 {[%emt 0:00:31]} 16. Nxe3 {[%emt 0:00:02]} d5 {[%emt 0:02:02]} 17. exd5 {[%emt 0:00:09]} Nxd5 {[%emt 0:00:01]} 18. Nxd5 {[%emt 0:00:02]} Qxd5 {[%emt 0:00:02]} 19. Re3 {[%emt 0:00:03]} Rad8 {[%emt 0:02:53]} 20. Rae1 {[%emt 0:00:32]} Re6 {[%emt 0:02:50]} 21. Qb2 {[%emt 0:01:47]} b5 {[%emt 0:02:59]} 22. axb5 {[%emt 0:00:39]} axb5 {[%emt 0:00:02]} 23. Rc1 {[%emt 0:04:14]} e4 {[%emt 0:02:11]} 24. dxe4 {[%emt 0:03:55]} Rxe4 {[%emt 0:00:01]} 25. Rxe4 {[%emt 0:00:18]} Qxe4 {[%emt 0:00:01]} 26. Re1 {[%emt 0:00:12]} Qc4 {[%emt 0:00:23]} 27. Nd2 {[%emt 0:01:18]} Qd5 {[%emt 0:01:08]} 28. Nf3 {[%emt 0:01:03]} 1/2-1/2

[Event "Czech Open Rapid G1 2024"]
[Site "Pardubice"]
[Date "2024.07.18"]
[Round "8.19"]
[White "Kroulik, Vaclav"]
[Black "Freisler, Pavel"]
[Result "1-0"]
[Annotator "RC"]
[ECO "B03"]
[WhiteElo "1976"]
[BlackElo "2261"]
[PlyCount "102"]
[EventDate "2024.07.16"]
[EventType "swiss"]
[EventCountry "CZE"]
[SourceTitle "playchess.com"]
[Source "ChessBase"]
[SourceQuality "1"]
[TimeControl "1200+10"]

1. e4 {[%emt 0:00:02]} Nf6 {[%emt 0:00:04]} 2. e5 {[%emt 0:00:02]} Nd5 {[%emt 0:00:01]} 3. d4 {[%emt 0:00:04]} d6 {[%emt 0:00:01]} 4. exd6 {[%emt 0:00:02]} cxd6 {[%emt 0:00:19]} 5. c4 {[%emt 0:00:02]} Nc7 {[%emt 0:00:01]} 6. Nc3 {[%emt 0:00:06]} g6 {[%emt 0:00:02]} 7. Nf3 {[%emt 0:00:23]} Bg7 {[%emt 0:00:01]} 8. Be3 {[%emt 0:00:20]} O-O {[%emt 0:00:32]} 9. Be2 {[%emt 0:00:13]} d5 {[%emt 0:00:10]} 10. c5 {[%emt 0:00:22]} Nc6 {[%emt 0:00:02]} 11. Qd2 {[%emt 0:00:30]} Bg4 {[%emt 0:02:10]} 12. Rd1 {[%emt 0:01:17]} b6 {[%emt 0:01:24]} 13. cxb6 {[%emt 0:00:20]} axb6 {[%emt 0:00:01]} 14. O-O {[%emt 0:00:19]} e6 {[%emt 0:01:55]} 15. h3 {[%emt 0:00:28]} Bxf3 {[%emt 0:00:03]} 16. Bxf3 {[%emt 0:00:02]} b5 {[%emt 0:00:04]} 17. Rc1 {[%emt 0:01:31]} Qd7 {[%emt 0:00:02]} 18. Be2 {[%emt 0:00:41]} Rfb8 {[%emt 0:00:03]} 19. b3 {[%emt 0:01:39]} b4 {[%emt 0:01:00]} 20. Na4 {[%emt 0:00:07]} Nb5 {[%emt 0:00:01]} 21. Bxb5 {[%emt 0:01:18]} Rxb5 {[%emt 0:00:02]} 22. Rc2 {[%emt 0:01:16]} Rc8 {[%emt 0:01:23]} 23. Rfc1 {[%emt 0:00:02]} Rbb8 {[%emt 0:00:10]} 24. Nc5 {[%emt 0:01:10]} Qd6 {[%emt 0:01:34]} 25. Na6 {[%emt 0:00:39]} Rb6 {[%emt 0:00:48]} 26. Nxb4 {[%emt 0:00:51]} Rxb4 {[%emt 0:04:21]} 27. Rxc6 {[%emt 0:00:02]} Rxc6 {[%emt 0:00:00]} 28. Rxc6 {[%emt 0:00:02]} Qxc6 {[%emt 0:00:03]} 29. Qxb4 {[%emt 0:00:01]} h6 {[%emt 0:00:57]} 30. Qb8+ {[%emt 0:01:36]} Kh7 {[%emt 0:00:02]} 31. Qa7 {[%emt 0:00:17]} f6 {[%emt 0:00:43]} 32. Qc5 {[%emt 0:00:13]} Qa6 {[%emt 0:00:07]} 33. a4 {[%emt 0:00:15]} f5 {[%emt 0:00:11]} 34. Qe7 {[%emt 0:02:07]} g5 {[%emt 0:00:09]} 35. g3 {[%emt 0:00:30]} Kg6 {[%emt 0:00:55]} 36. Qe8+ {[%emt 0:00:12]} Kf6 {[%emt 0:00:29]} 37. h4 {[%emt 0:00:16]} Qe2 {[%emt 0:01:28]} 38. hxg5+ {[%emt 0:00:25]} hxg5 {[%emt 0:00:02]} 39. Qd8+ {[%emt 0:00:20]} Kf7 {[%emt 0:00:03]} 40. Qd7+ {[%emt 0:00:02]} Kf6 {[%emt 0:02:50]} 41. Bxg5+ {[%emt 0:00:07]} Kxg5 {[%emt 0:00:11]} 42. Qxg7+ {[%emt 0:00:02]} Kh5 {[%emt 0:00:02]} 43. Qe5 {[%emt 0:02:45]} Qd1+ {[%emt 0:00:07]} 44. Kg2 {[%emt 0:00:01]} Qxb3 {[%emt 0:00:01]} 45. Qxe6 {[%emt 0:00:03]} Qxa4 {[%emt 0:00:18]} 46. Qxf5+ {[%emt 0:00:02]} Kh6 {[%emt 0:00:01]} 47. Qxd5 {[%emt 0:00:03]} Qc2 {[%emt 0:00:09]} 48. Qe6+ {[%emt 0:00:08]} Kg7 {[%emt 0:00:05]} 49. d5 {[%emt 0:00:07]} Qc4 {[%emt 0:00:15]} 50. Qd7+ {[%emt 0:00:37]} Kf6 {[%emt 0:00:07]} 51. Qc6+ {[%emt 0:00:02]} Ke7 {[%emt 0:00:04]} 1-0

[Event "Czech Open Rapid G1 2024"]
[Site "Pardubice"]
[Date "2024.07.18"]
[Round "8.20"]
[White "Hosticka, Frantisek"]
[Black "Tyshniuk, Roman"]
[Result "0-1"]
[Annotator "RC"]
[ECO "B30"]
[WhiteElo "2062"]
[BlackElo "1903"]
[PlyCount "142"]
[EventDate "2024.07.16"]
[EventType "swiss"]
[EventCountry "CZE"]
[SourceTitle "playchess.com"]
[Source "ChessBase"]
[SourceQuality "1"]
[TimeControl "1200+10"]

1. e4 {[%emt 0:00:01]} c5 {[%emt 0:00:01]} 2. Nf3 {[%emt 0:00:01]} Nc6 {[%emt 0:00:00]} 3. Bb5 {[%emt 0:00:01]} e6 {[%emt 0:00:01]} 4. O-O {[%emt 0:00:01]} Nge7 {[%emt 0:00:01]} 5. b3 {[%emt 0:00:01]} d6 {[%emt 0:00:13]} 6. Bb2 {[%emt 0:00:03]} e5 {[%emt 0:00:01]} 7. h3 {[%emt 0:00:13]} a6 {[%emt 0:00:01]} 8. Bxc6+ {[%emt 0:00:02]} Nxc6 {[%emt 0:00:02]} 9. c3 {[%emt 0:00:01]} Be7 {[%emt 0:00:12]} 10. d4 {[%emt 0:00:03]} O-O {[%emt 0:00:02]} 11. Nbd2 {[%emt 0:00:25]} b5 {[%emt 0:04:55]} 12. dxc5 {[%emt 0:00:48]} dxc5 {[%emt 0:00:01]} 13. Qe2 {[%emt 0:00:49]} Be6 {[%emt 0:00:33]} 14. Rfd1 {[%emt 0:00:24]} Qb6 {[%emt 0:00:14]} 15. Nf1 {[%emt 0:00:12]} c4 {[%emt 0:00:12]} 16. b4 {[%emt 0:00:08]} f5 {[%emt 0:02:25]} 17. exf5 {[%emt 0:00:33]} Bxf5 {[%emt 0:00:13]} 18. Nxe5 {[%emt 0:00:47]} Nxe5 {[%emt 0:02:58]} 19. Qxe5 {[%emt 0:00:04]} Bh4 {[%emt 0:00:03]} 20. Qd4 {[%emt 0:03:32]} Qxd4 {[%emt 0:01:03]} 21. Rxd4 {[%emt 0:00:04]} Bf6 {[%emt 0:00:08]} 22. Rdd1 {[%emt 0:01:11]} Rae8 {[%emt 0:00:32]} 23. Ne3 {[%emt 0:00:20]} Bd3 {[%emt 0:00:11]} 24. a4 {[%emt 0:01:42]} Bh4 {[%emt 0:00:18]} 25. Rd2 {[%emt 0:00:56]} Bxf2+ {[%emt 0:00:13]} 26. Rxf2 {[%emt 0:00:07]} Rxe3 {[%emt 0:00:01]} 27. Rxf8+ {[%emt 0:00:22]} Kxf8 28. axb5 {[%emt 0:00:24]} axb5 {[%emt 0:00:05]} 29. Bc1 {[%emt 0:02:23]} Re2 {[%emt 0:00:40]} 30. Bf4 {[%emt 0:01:10]} Be4 {[%emt 0:00:39]} 31. g4 {[%emt 0:03:14]} Rg2+ {[%emt 0:01:21]} 32. Kf1 {[%emt 0:00:04]} Rc2 {[%emt 0:00:02]} 33. Be5 {[%emt 0:00:25]} Bg2+ {[%emt 0:02:19]} 34. Kg1 {[%emt 0:00:46]} Bxh3 {[%emt 0:00:01]} 35. Ra5 {[%emt 0:01:14]} Bxg4 {[%emt 0:01:23]} 36. Rxb5 {[%emt 0:00:13]} Bf3 {[%emt 0:01:12]} 37. Rc5 {[%emt 0:00:38]} Rg2+ {[%emt 0:00:15]} 38. Kf1 {[%emt 0:00:05]} g5 {[%emt 0:01:49]} 39. b5 {[%emt 0:01:56]} g4 {[%emt 0:00:28]} 40. b6 {[%emt 0:00:09]} Rb2 {[%emt 0:00:08]} 41. Rc8+ {[%emt 0:00:34]} Kf7 {[%emt 0:00:31]} 42. Rc7+ {[%emt 0:00:43]} Ke6 {[%emt 0:00:47]} 43. Bf4 {[%emt 0:00:11]} Rxb6 {[%emt 0:00:12]} 44. Rxh7 {[%emt 0:00:02]} Rb3 {[%emt 0:00:17]} 45. Rh6+ {[%emt 0:00:25]} Kf5 {[%emt 0:00:02]} 46. Bg3 {[%emt 0:00:05]} Rxc3 {[%emt 0:00:05]} 47. Rh5+ {[%emt 0:00:08]} Ke4 {[%emt 0:00:16]} 48. Re5+ {[%emt 0:00:05]} Kd3 {[%emt 0:00:05]} 49. Re7 {[%emt 0:00:12]} Rc1+ {[%emt 0:00:10]} 50. Kf2 {[%emt 0:00:01]} Rc2+ {[%emt 0:00:01]} 51. Kf1 {[%emt 0:00:02]} Re2 {[%emt 0:00:27]} 52. Rd7+ {[%emt 0:00:10]} Kc2 {[%emt 0:00:03]} 53. Be1 {[%emt 0:00:06]} Rh2 {[%emt 0:00:15]} 54. Ra7 {[%emt 0:00:11]} Rh1+ {[%emt 0:00:32]} 55. Kf2 {[%emt 0:00:02]} Rxe1 {[%emt 0:00:21]} 56. Kxe1 {[%emt 0:00:04]} g3 {[%emt 0:00:01]} 57. Rg7 {[%emt 0:00:21]} g2 {[%emt 0:00:04]} 58. Rg6 {[%emt 0:00:01]} Be4 {[%emt 0:00:04]} 59. Kf2 {[%emt 0:00:21]} c3 {[%emt 0:00:16]} 60. Rg3 {[%emt 0:00:01]} Bd5 {[%emt 0:00:04]} 61. Re3 {[%emt 0:00:03]} Bc6 {[%emt 0:00:04]} 62. Re6 {[%emt 0:00:13]} Bf3 {[%emt 0:00:15]} 63. Re3 {[%emt 0:00:13]} Kd2 {[%emt 0:00:22]} 64. Rxf3 {[%emt 0:00:14]} c2 {[%emt 0:00:01]} 65. Rf7 {[%emt 0:00:02]} g1=Q+ {[%emt 0:00:02]} 66. Kxg1 {[%emt 0:00:02]} c1=Q+ {[%emt 0:00:03]} 67. Kf2 {[%emt 0:00:06]} Qc5+ {[%emt 0:00:01]} 68. Kg3 {[%emt 0:00:04]} Qg5+ {[%emt 0:00:02]} 69. Kf2 {[%emt 0:00:03]} Qh4+ {[%emt 0:00:05]} 70. Kg1 {[%emt 0:00:06]} Qg4+ {[%emt 0:00:06]} 71. Kf1 {[%emt 0:00:03]} Qc4+ {[%emt 0:00:00]} 0-1

[Event "Czech Open Rapid G1 2024"]
[Site "Pardubice"]
[Date "2024.07.18"]
[Round "8.21"]
[White "Dorokhina, Elizaveta"]
[Black "Ocelak, Jakub"]
[Result "0-1"]
[Annotator "RC"]
[ECO "A41"]
[WhiteElo "1962"]
[BlackElo "2206"]
[PlyCount "84"]
[EventDate "2024.07.16"]
[EventType "swiss"]
[EventCountry "CZE"]
[SourceTitle "playchess.com"]
[Source "ChessBase"]
[SourceQuality "1"]
[TimeControl "1200+10"]

1. d4 {[%emt 0:00:02]} g6 {[%emt 0:00:02]} 2. Nf3 {[%emt 0:00:02]} Bg7 {[%emt 0:00:01]} 3. Bf4 {[%emt 0:00:02]} d6 {[%emt 0:00:19]} 4. e3 {[%emt 0:00:02]} Nd7 {[%emt 0:00:02]} 5. h3 {[%emt 0:00:26]} e5 {[%emt 0:00:02]} 6. Bh2 {[%emt 0:00:10]} Nh6 {[%emt 0:00:23]} 7. c3 {[%emt 0:00:18]} O-O {[%emt 0:00:09]} 8. Nbd2 {[%emt 0:00:03]} f5 {[%emt 0:00:35]} 9. Bc4+ {[%emt 0:00:20]} Kh8 {[%emt 0:00:04]} 10. h4 {[%emt 0:00:08]} Ng4 {[%emt 0:03:15]} 11. Qc2 {[%emt 0:01:08]} Nb6 {[%emt 0:00:35]} 12. Bb3 {[%emt 0:00:08]} a5 {[%emt 0:00:57]} 13. a3 {[%emt 0:00:40]} Qe7 {[%emt 0:00:35]} 14. Nc4 {[%emt 0:00:17]} Nxc4 {[%emt 0:01:19]} 15. Bxc4 {[%emt 0:00:03]} c6 {[%emt 0:00:45]} 16. O-O-O {[%emt 0:00:23]} b5 {[%emt 0:00:53]} 17. Ba2 {[%emt 0:00:50]} b4 {[%emt 0:00:29]} 18. Kb1 {[%emt 0:02:15]} bxa3 {[%emt 0:00:37]} 19. bxa3 {[%emt 0:00:01]} Ba6 {[%emt 0:01:45]} 20. h5 {[%emt 0:01:17]} g5 {[%emt 0:00:35]} 21. h6 {[%emt 0:00:55]} Bf6 {[%emt 0:00:51]} 22. Bg1 {[%emt 0:00:13]} e4 {[%emt 0:00:07]} 23. Ne1 {[%emt 0:00:02]} d5 {[%emt 0:01:00]} 24. Qc1 {[%emt 0:00:03]} Rfe8 {[%emt 0:00:45]} 25. Ka1 {[%emt 0:00:43]} Qe6 {[%emt 0:00:57]} 26. Nc2 {[%emt 0:00:18]} Be7 {[%emt 0:00:25]} 27. Bh2 {[%emt 0:01:04]} Nxf2 {[%emt 0:00:17]} 28. Be5+ {[%emt 0:00:01]} Bf6 {[%emt 0:00:06]} 29. Bxf6+ {[%emt 0:00:19]} Qxf6 {[%emt 0:00:01]} 30. Rdf1 {[%emt 0:00:16]} Nxh1 {[%emt 0:00:11]} 31. Rxh1 {[%emt 0:00:01]} f4 {[%emt 0:00:05]} 32. Qd2 {[%emt 0:00:22]} f3 {[%emt 0:00:26]} 33. gxf3 {[%emt 0:00:22]} exf3 {[%emt 0:00:02]} 34. Qf2 {[%emt 0:00:12]} Bd3 {[%emt 0:00:11]} 35. Ne1 {[%emt 0:00:13]} Be4 {[%emt 0:00:03]} 36. Bb1 {[%emt 0:00:01]} Qd6 {[%emt 0:00:25]} 37. Nc2 {[%emt 0:00:45]} Rab8 {[%emt 0:00:30]} 38. Ba2 {[%emt 0:00:35]} g4 {[%emt 0:00:27]} 39. Rh5 {[%emt 0:00:09]} g3 {[%emt 0:00:12]} 40. Qd2 {[%emt 0:00:03]} f2 {[%emt 0:00:27]} 41. Qe2 {[%emt 0:00:34]} Qg6 {[%emt 0:00:09]} 42. Bb1 {[%emt 0:00:26]} Bd3 {[%emt 0:00:25]} 0-1

[Event "Czech Open Rapid G1 2024"]
[Site "Pardubice"]
[Date "2024.07.18"]
[Round "8.22"]
[White "Brotanek, Tomas"]
[Black "Dolensky, Filip"]
[Result "0-1"]
[Annotator "RC"]
[ECO "B22"]
[WhiteElo "1674"]
[BlackElo "2085"]
[PlyCount "82"]
[EventDate "2024.07.16"]
[EventType "swiss"]
[EventCountry "CZE"]
[SourceTitle "playchess.com"]
[Source "ChessBase"]
[SourceQuality "1"]
[TimeControl "1200+10"]

1. e4 {[%emt 0:00:02]} c5 {[%emt 0:00:01]} 2. c3 {[%emt 0:00:05]} e6 {[%emt 0:00:12]} 3. d4 {[%emt 0:00:02]} d5 {[%emt 0:00:01]} 4. exd5 {[%emt 0:00:05]} Qxd5 {[%emt 0:00:04]} 5. Nf3 {[%emt 0:00:02]} Nf6 {[%emt 0:00:02]} 6. Na3 {[%emt 0:00:02]} a6 {[%emt 0:00:39]} 7. Be3 {[%emt 0:00:21]} cxd4 {[%emt 0:00:09]} 8. Nxd4 {[%emt 0:00:18]} Nbd7 {[%emt 0:00:51]} 9. Nc4 {[%emt 0:00:20]} Be7 {[%emt 0:00:18]} 10. Qf3 {[%emt 0:00:37]} b5 {[%emt 0:00:32]} 11. Nd2 {[%emt 0:00:28]} Bb7 {[%emt 0:00:16]} 12. Be2 {[%emt 0:01:19]} O-O {[%emt 0:00:35]} 13. O-O {[%emt 0:01:08]} Ne5 {[%emt 0:01:28]} 14. Qh3 {[%emt 0:01:05]} Ng6 {[%emt 0:01:04]} 15. Bf3 {[%emt 0:00:19]} Qd7 {[%emt 0:00:01]} 16. Bxb7 {[%emt 0:00:02]} Qxb7 {[%emt 0:00:01]} 17. Qf3 {[%emt 0:00:19]} Qd5 {[%emt 0:01:18]} 18. Qxd5 {[%emt 0:00:35]} Nxd5 {[%emt 0:00:01]} 19. Rfe1 {[%emt 0:00:02]} Nxe3 {[%emt 0:01:04]} 20. fxe3 {[%emt 0:00:01]} Rfd8 {[%emt 0:00:31]} 21. Rad1 {[%emt 0:00:10]} Bc5 {[%emt 0:00:13]} 22. Ne4 {[%emt 0:00:33]} Bb6 {[%emt 0:00:09]} 23. Kf2 {[%emt 0:01:42]} Ne5 {[%emt 0:00:10]} 24. h3 {[%emt 0:01:02]} Rac8 {[%emt 0:01:15]} 25. Re2 {[%emt 0:01:28]} h6 {[%emt 0:00:42]} 26. Rc2 {[%emt 0:00:49]} f5 {[%emt 0:00:29]} 27. Nd2 {[%emt 0:00:03]} Kf7 {[%emt 0:00:07]} 28. N2f3 {[%emt 0:00:14]} Nxf3 {[%emt 0:00:14]} 29. Kxf3 {[%emt 0:00:50]} e5 {[%emt 0:00:06]} 30. Rcd2 {[%emt 0:00:18]} exd4 {[%emt 0:00:04]} 31. exd4 {[%emt 0:00:02]} Re8 {[%emt 0:00:07]} 32. g3 {[%emt 0:01:33]} g5 {[%emt 0:00:15]} 33. Rf2 {[%emt 0:00:02]} Kf6 {[%emt 0:00:07]} 34. Kg2 {[%emt 0:00:08]} Kg6 {[%emt 0:00:17]} 35. Rdf1 {[%emt 0:00:07]} Rf8 {[%emt 0:00:01]} 36. h4 {[%emt 0:00:10]} Rce8 {[%emt 0:00:16]} 37. Kh3 {[%emt 0:00:34]} Re3 {[%emt 0:00:31]} 38. h5+ {[%emt 0:00:39]} Kxh5 {[%emt 0:00:17]} 39. Rxf5 {[%emt 0:00:05]} Rxf5 {[%emt 0:00:01]} 40. Rxf5 {[%emt 0:00:02]} Bc7 {[%emt 0:00:10]} 41. Rf6 {[%emt 0:00:01]} Rxg3+ {[%emt 0:00:07]} 0-1

[Event "Czech Open Rapid G1 2024"]
[Site "Pardubice"]
[Date "2024.07.18"]
[Round "8.23"]
[White "Garsky, Vladyslav"]
[Black "Stocek, Martin"]
[Result "1-0"]
[Annotator "RC"]
[ECO "B13"]
[WhiteElo "2137"]
[BlackElo "2110"]
[PlyCount "85"]
[EventDate "2024.07.16"]
[EventType "swiss"]
[EventCountry "CZE"]
[SourceTitle "playchess.com"]
[Source "ChessBase"]
[SourceQuality "1"]
[TimeControl "1200+10"]

1. e4 {[%emt 0:00:01]} c6 {[%emt 0:00:01]} 2. d4 {[%emt 0:00:01]} d5 {[%emt 0:00:01]} 3. exd5 {[%emt 0:00:01]} cxd5 {[%emt 0:00:01]} 4. Bd3 {[%emt 0:00:03]} Nc6 {[%emt 0:00:03]} 5. c3 {[%emt 0:00:00]} Nf6 {[%emt 0:00:04]} 6. Nf3 {[%emt 0:00:02]} Bg4 {[%emt 0:00:02]} 7. h3 {[%emt 0:00:01]} Bxf3 8. Qxf3 {[%emt 0:00:01]} e6 {[%emt 0:01:05]} 9. O-O {[%emt 0:00:03]} Be7 {[%emt 0:00:09]} 10. Bf4 {[%emt 0:00:07]} O-O {[%emt 0:00:05]} 11. Nd2 {[%emt 0:00:01]} Re8 {[%emt 0:00:55]} 12. Rfe1 {[%emt 0:00:01]} Rc8 {[%emt 0:00:36]} 13. Re2 {[%emt 0:00:43]} Qb6 {[%emt 0:00:46]} 14. Nf1 {[%emt 0:00:31]} Na5 {[%emt 0:00:29]} 15. Rae1 {[%emt 0:00:27]} Nc4 {[%emt 0:00:06]} 16. Bc1 {[%emt 0:01:22]} Nd6 17. Ng3 {[%emt 0:02:11]} Qa5 {[%emt 0:01:16]} 18. a3 {[%emt 0:00:00]} b5 {[%emt 0:00:28]} 19. Nh5 {[%emt 0:01:05]} Qb6 20. g4 {[%emt 0:00:51]} a5 21. Nxf6+ {[%emt 0:01:12]} Bxf6 {[%emt 0:00:23]} 22. h4 {[%emt 0:00:00]} b4 {[%emt 0:07:56]} 23. axb4 {[%emt 0:00:00]} axb4 {[%emt 0:00:02]} 24. h5 {[%emt 0:00:00]} bxc3 {[%emt 0:00:49]} 25. bxc3 {[%emt 0:00:00]} Qb3 {[%emt 0:01:17]} 26. Bd2 {[%emt 0:01:49]} Nc4 {[%emt 0:02:45]} 27. Bc1 {[%emt 0:00:49]} Nd6 {[%emt 0:00:07]} 28. Bd2 {[%emt 0:00:11]} Nc4 {[%emt 0:00:02]} 29. Bxc4 {[%emt 0:00:51]} Qxc4 {[%emt 0:00:16]} 30. h6 {[%emt 0:00:13]} Ra8 {[%emt 0:01:07]} 31. Kg2 {[%emt 0:00:24]} Ra2 {[%emt 0:00:39]} 32. g5 {[%emt 0:00:19]} Be7 {[%emt 0:00:07]} 33. hxg7 {[%emt 0:00:03]} Rea8 {[%emt 0:01:14]} 34. Bf4 {[%emt 0:05:20]} Rxe2 {[%emt 0:00:32]} 35. Rxe2 {[%emt 0:00:01]} Ra1 {[%emt 0:01:18]} 36. g6 {[%emt 0:00:34]} hxg6 {[%emt 0:01:11]} 37. Qh3 {[%emt 0:00:02]} Kxg7 {[%emt 0:00:03]} 38. Qh6+ {[%emt 0:00:01]} Kg8 {[%emt 0:00:03]} 39. Be5 {[%emt 0:00:05]} f6 {[%emt 0:00:30]} 40. Qxg6+ {[%emt 0:00:01]} Kf8 {[%emt 0:00:02]} 41. Bxf6 {[%emt 0:00:06]} Bd6 {[%emt 0:00:16]} 42. Qg7+ {[%emt 0:00:08]} Ke8 {[%emt 0:00:01]} 43. Rxe6+ {[%emt 0:00:01]} 1-0